Workbook

Sheet Overzicht maandelijks budget
B1: BEDRIJFSNAAM | E1: DATUM
B2: MAANDBUDGET
B4: BUDGETTOTALEN | C4: GESCHAT | D4: WERKELIJK | E4: VERSCHIL
B5: Inkomsten | C5: =Inkomsten[[#Totals],[GESCHAT]] -> 63,300.00 | D5: =Inkomsten[[#Totals],[WERKELIJK]] -> 57,450.00 | E5: =IF('Overzicht maandelijks budget'!$B5="Inkomsten",'Overzicht maandelijks budget'!$D5-'Overzicht maandelijks budget'!$C5,'Overzicht maandelijks budget'!$C5-'Overzicht maandelijks budget'!$D5) -> -5,850.00
B6: Uitgaven personeel | C6: =PersonnelExpenses[[#Totals],[GESCHAT]] -> 18,500.00 | D6: =PersonnelExpenses[[#Totals],[WERKELIJK]] -> 14,100.00 | E6: =IF('Overzicht maandelijks budget'!$B6="Inkomsten",'Overzicht maandelijks budget'!$D6-'Overzicht maandelijks budget'!$C6,'Overzicht maandelijks budget'!$C6-'Overzicht maandelijks budget'!$D6) -> 4,400.00
B7: Operationele kosten | C7: =OperatingExpenses[[#Totals],[GESCHAT]] -> 36,000.00 | D7: =OperatingExpenses[[#Totals],[WERKELIJK]] -> 35,530.00 | E7: =IF('Overzicht maandelijks budget'!$B7="Inkomsten",'Overzicht maandelijks budget'!$D7-'Overzicht maandelijks budget'!$C7,'Overzicht maandelijks budget'!$C7-'Overzicht maandelijks budget'!$D7) -> 470.00
B8: Saldo (inkomsten minus uitgaven) | C8: =C5-C6-C7 -> 8,800.00 | D8: =D5-D6-D7 -> 7,820.00 | E8: =SUBTOTAL(109,Table2[VERSCHIL]) -> -980.00
B10: WAT IS DE TOP 5 MET MIJN DUURSTE WERKELIJKE OPERATIONELE UITGAVEN?
B11: WERKELIJKE KOSTEN | C11: BEDRAG | D11: PERCENTAGE VAN UITGAVEN | E11: 15% REDUCTIE
B12: =INDEX(OperatingExpenses[],MATCH(Top5Expenses[[#This Row],[BEDRAG]],OperatingExpenses[TOP 5 BEDRAGEN],0),1) -> Onderhoud en reparaties | C12: =LARGE(OperatingExpenses[TOP 5 BEDRAGEN],1) -> 4,600.00 | D12: =Top5Expenses[[#This Row],[BEDRAG]]/$D$7 -> 12.9% | E12: =Top5Expenses[[#This Row],[BEDRAG]]*0.15 -> 690.00
B13: =INDEX(OperatingExpenses[],MATCH(Top5Expenses[[#This Row],[BEDRAG]],OperatingExpenses[TOP 5 BEDRAGEN],0),1) -> Benodigdheden | C13: =LARGE(OperatingExpenses[TOP 5 BEDRAGEN],2) -> 4,500.00 | D13: =Top5Expenses[[#This Row],[BEDRAG]]/$D$7 -> 12.7% | E13: =Top5Expenses[[#This Row],[BEDRAG]]*0.15 -> 675.00
B14: =INDEX(OperatingExpenses[],MATCH(Top5Expenses[[#This Row],[BEDRAG]],OperatingExpenses[TOP 5 BEDRAGEN],0),1) -> Huur of hypotheek | C14: =LARGE(OperatingExpenses[TOP 5 BEDRAGEN],3) -> 4,500.00 | D14: =Top5Expenses[[#This Row],[BEDRAG]]/$D$7 -> 12.7% | E14: =Top5Expenses[[#This Row],[BEDRAG]]*0.15 -> 675.00
B15: =INDEX(OperatingExpenses[],MATCH(Top5Expenses[[#This Row],[BEDRAG]],OperatingExpenses[TOP 5 BEDRAGEN],0),1) -> Belastingen | C15: =LARGE(OperatingExpenses[TOP 5 BEDRAGEN],4) -> 3,200.00 | D15: =Top5Expenses[[#This Row],[BEDRAG]]/$D$7 -> 9.0% | E15: =Top5Expenses[[#This Row],[BEDRAG]]*0.15 -> 480.00
B16: =INDEX(OperatingExpenses[],MATCH(Top5Expenses[[#This Row],[BEDRAG]],OperatingExpenses[TOP 5 BEDRAGEN],0),1) -> Reclame | C16: =LARGE(OperatingExpenses[TOP 5 BEDRAGEN],5) -> 2,500.00 | D16: =Top5Expenses[[#This Row],[BEDRAG]]/$D$7 -> 7.0% | E16: =Top5Expenses[[#This Row],[BEDRAG]]*0.15 -> 375.00
B17: Totaal | C17: =SUBTOTAL(109,Top5Expenses[BEDRAG]) -> 19,300.00 | D17: =SUBTOTAL(109,Top5Expenses[PERCENTAGE VAN UITGAVEN]) -> 54.3% | E17: =SUBTOTAL(109,Top5Expenses[15% REDUCTIE]) -> 2,895.00

Sheet Inkomsten
B1: BEDRIJFSNAAM | E1: DATUM | F1: DATUM
B2: MAANDBUDGET
B4: INKOMSTEN | C4: GESCHAT | D4: WERKELIJK | E4: TOP 5 BEDRAGEN | F4: VERSCHIL
B5: Netto verkopen | C5: 60,000.00 | D5: 54,000.00 | E5: =Inkomsten[[#This Row],[WERKELIJK]]+(10^-6)*ROW(Inkomsten[[#This Row],[WERKELIJK]]) -> 54,000.00 | F5: =Inkomsten[[#This Row],[WERKELIJK]]-Inkomsten[[#This Row],[GESCHAT]] -> -6,000.00
B6: Rentebaten | C6: 3,000.00 | D6: 3,000.00 | E6: =Inkomsten[[#This Row],[WERKELIJK]]+(10^-6)*ROW(Inkomsten[[#This Row],[WERKELIJK]]) -> 3,000.00 | F6: =Inkomsten[[#This Row],[WERKELIJK]]-Inkomsten[[#This Row],[GESCHAT]] -> 0.00
B7: Verkoop van activa (winst/verlies) | C7: 300.00 | D7: 450.00 | E7: =Inkomsten[[#This Row],[WERKELIJK]]+(10^-6)*ROW(Inkomsten[[#This Row],[WERKELIJK]]) -> 450.00 | F7: =Inkomsten[[#This Row],[WERKELIJK]]-Inkomsten[[#This Row],[GESCHAT]] -> 150.00
B8: Totale inkomsten | C8: =SUBTOTAL(109,Inkomsten[GESCHAT]) -> 63,300.00 | D8: =SUBTOTAL(109,Inkomsten[WERKELIJK]) -> 57,450.00 | F8: =SUBTOTAL(109,Inkomsten[VERSCHIL]) -> -5,850.00

Sheet Uitgaven personeel
B1: BEDRIJFSNAAM | E1: DATUM | F1: DATUM
B2: MAANDBUDGET
B4: UITGAVEN VOOR PERSONEEL | C4: GESCHAT | D4: WERKELIJK | E4: TOP 5 BEDRAGEN | F4: VERSCHIL
B5: Salaris | C5: 9,500.00 | D5: 9,600.00 | E5: =PersonnelExpenses[[#This Row],[WERKELIJK]]+(10^-6)*ROW(PersonnelExpenses[[#This Row],[WERKELIJK]]) -> 9600.000005 | F5: =PersonnelExpenses[[#This Row],[GESCHAT]]-PersonnelExpenses[[#This Row],[WERKELIJK]] -> (100.00)
B6: Beloningen personeel | C6: 4,000.00 | D6: 0.00 | E6: =PersonnelExpenses[[#This Row],[WERKELIJK]]+(10^-6)*ROW(PersonnelExpenses[[#This Row],[WERKELIJK]]) -> 6e-06 | F6: =PersonnelExpenses[[#This Row],[GESCHAT]]-PersonnelExpenses[[#This Row],[WERKELIJK]] -> 4,000.00
B7: Commissie | C7: 5,000.00 | D7: 4,500.00 | E7: =PersonnelExpenses[[#This Row],[WERKELIJK]]+(10^-6)*ROW(PersonnelExpenses[[#This Row],[WERKELIJK]]) -> 4500.000007 | F7: =PersonnelExpenses[[#This Row],[GESCHAT]]-PersonnelExpenses[[#This Row],[WERKELIJK]] -> 500.00
B8: Totaal aan uitgaven voor personeel | C8: =SUBTOTAL(109,PersonnelExpenses[GESCHAT]) -> 18,500.00 | D8: =SUBTOTAL(109,PersonnelExpenses[WERKELIJK]) -> 14,100.00 | F8: =SUBTOTAL(109,PersonnelExpenses[VERSCHIL]) -> 4,400.00

Sheet Operationele kosten
B1: BEDRIJFSNAAM | E1: DATUM | F1: DATUM
B2: MAANDBUDGET
B4: BEDRIJFSKOSTEN | C4: GESCHAT | D4: WERKELIJK | E4: TOP 5 BEDRAGEN | F4: VERSCHIL
B5: Reclame | C5: 3000.00 | D5: 2500.00 | E5: =OperatingExpenses[[#This Row],[WERKELIJK]]+(10^-6)*ROW(OperatingExpenses[[#This Row],[WERKELIJK]]) -> 2500.00 | F5: =OperatingExpenses[[#This Row],[GESCHAT]]-OperatingExpenses[[#This Row],[WERKELIJK]] -> 500.00
B6: Oninbare schulden | C6: 2000.00 | D6: 2000.00 | E6: =OperatingExpenses[[#This Row],[WERKELIJK]]+(10^-6)*ROW(OperatingExpenses[[#This Row],[WERKELIJK]]) -> 2000.00 | F6: =OperatingExpenses[[#This Row],[GESCHAT]]-OperatingExpenses[[#This Row],[WERKELIJK]] -> 0.00
B7: Contantkortingen | C7: 1500.00 | D7: 2175.00 | E7: =OperatingExpenses[[#This Row],[WERKELIJK]]+(10^-6)*ROW(OperatingExpenses[[#This Row],[WERKELIJK]]) -> 2175.00 | F7: =OperatingExpenses[[#This Row],[GESCHAT]]-OperatingExpenses[[#This Row],[WERKELIJK]] -> -675.00
B8: Afleveringskosten | C8: 2000.00 | D8: 1500.00 | E8: =OperatingExpenses[[#This Row],[WERKELIJK]]+(10^-6)*ROW(OperatingExpenses[[#This Row],[WERKELIJK]]) -> 1500.00 | F8: =OperatingExpenses[[#This Row],[GESCHAT]]-OperatingExpenses[[#This Row],[WERKELIJK]] -> 500.00
B9: Afschrijving | C9: 1000.00 | D9: 1000.00 | E9: =OperatingExpenses[[#This Row],[WERKELIJK]]+(10^-6)*ROW(OperatingExpenses[[#This Row],[WERKELIJK]]) -> 1000.00 | F9: =OperatingExpenses[[#This Row],[GESCHAT]]-OperatingExpenses[[#This Row],[WERKELIJK]] -> 0.00
B10: Contributies en abonnementen | C10: 500.00 | D10: 525.00 | E10: =OperatingExpenses[[#This Row],[WERKELIJK]]+(10^-6)*ROW(OperatingExpenses[[#This Row],[WERKELIJK]]) -> 525.00 | F10: =OperatingExpenses[[#This Row],[GESCHAT]]-OperatingExpenses[[#This Row],[WERKELIJK]] -> -25.00
B11: Verzekering | C11: 1300.00 | D11: 1275.00 | E11: =OperatingExpenses[[#This Row],[WERKELIJK]]+(10^-6)*ROW(OperatingExpenses[[#This Row],[WERKELIJK]]) -> 1275.00 | F11: =OperatingExpenses[[#This Row],[GESCHAT]]-OperatingExpenses[[#This Row],[WERKELIJK]] -> 25.00
B12: Rente | C12: 2000.00 | D12: 2200.00 | E12: =OperatingExpenses[[#This Row],[WERKELIJK]]+(10^-6)*ROW(OperatingExpenses[[#This Row],[WERKELIJK]]) -> 2200.00 | F12: =OperatingExpenses[[#This Row],[GESCHAT]]-OperatingExpenses[[#This Row],[WERKELIJK]] -> -200.00
B13: Juridisch en controles | C13: 1000.00 | D13: 800.00 | E13: =OperatingExpenses[[#This Row],[WERKELIJK]]+(10^-6)*ROW(OperatingExpenses[[#This Row],[WERKELIJK]]) -> 800.00 | F13: =OperatingExpenses[[#This Row],[GESCHAT]]-OperatingExpenses[[#This Row],[WERKELIJK]] -> 200.00
B14: Onderhoud en reparaties | C14: 4500.00 | D14: 4600.00 | E14: =OperatingExpenses[[#This Row],[WERKELIJK]]+(10^-6)*ROW(OperatingExpenses[[#This Row],[WERKELIJK]]) -> 4600.00 | F14: =OperatingExpenses[[#This Row],[GESCHAT]]-OperatingExpenses[[#This Row],[WERKELIJK]] -> -100.00
B15: Kantoorbenodigdheden | C15: 800.00 | D15: 750.00 | E15: =OperatingExpenses[[#This Row],[WERKELIJK]]+(10^-6)*ROW(OperatingExpenses[[#This Row],[WERKELIJK]]) -> 750.00 | F15: =OperatingExpenses[[#This Row],[GESCHAT]]-OperatingExpenses[[#This Row],[WERKELIJK]] -> 50.00
B16: Portokosten | C16: 400.00 | D16: 350.00 | E16: =OperatingExpenses[[#This Row],[WERKELIJK]]+(10^-6)*ROW(OperatingExpenses[[#This Row],[WERKELIJK]]) -> 350.00 | F16: =OperatingExpenses[[#This Row],[GESCHAT]]-OperatingExpenses[[#This Row],[WERKELIJK]] -> 50.00
B17: Huur of hypotheek | C17: 4100.00 | D17: 4500.00 | E17: =OperatingExpenses[[#This Row],[WERKELIJK]]+(10^-6)*ROW(OperatingExpenses[[#This Row],[WERKELIJK]]) -> 4500.00 | F17: =OperatingExpenses[[#This Row],[GESCHAT]]-OperatingExpenses[[#This Row],[WERKELIJK]] -> -400.00
B18: Verkoopuitgaven | C18: 350.00 | D18: 400.00 | E18: =OperatingExpenses[[#This Row],[WERKELIJK]]+(10^-6)*ROW(OperatingExpenses[[#This Row],[WERKELIJK]]) -> 400.00 | F18: =OperatingExpenses[[#This Row],[GESCHAT]]-OperatingExpenses[[#This Row],[WERKELIJK]] -> -50.00
B19: Verzending en opslag | C19: 900.00 | D19: 840.00 | E19: =OperatingExpenses[[#This Row],[WERKELIJK]]+(10^-6)*ROW(OperatingExpenses[[#This Row],[WERKELIJK]]) -> 840.00 | F19: =OperatingExpenses[[#This Row],[GESCHAT]]-OperatingExpenses[[#This Row],[WERKELIJK]] -> 60.00
B20: Benodigdheden | C20: 5000.00 | D20: 4500.00 | E20: =OperatingExpenses[[#This Row],[WERKELIJK]]+(10^-6)*ROW(OperatingExpenses[[#This Row],[WERKELIJK]]) -> 4500.00 | F20: =OperatingExpenses[[#This Row],[GESCHAT]]-OperatingExpenses[[#This Row],[WERKELIJK]] -> 500.00
B21: Belastingen | C21: 3000.00 | D21: 3200.00 | E21: =OperatingExpenses[[#This Row],[WERKELIJK]]+(10^-6)*ROW(OperatingExpenses[[#This Row],[WERKELIJK]]) -> 3200.00 | F21: =OperatingExpenses[[#This Row],[GESCHAT]]-OperatingExpenses[[#This Row],[WERKELIJK]] -> -200.00
B22: Telefoon | C22: 250.00 | D22: 280.00 | E22: =OperatingExpenses[[#This Row],[WERKELIJK]]+(10^-6)*ROW(OperatingExpenses[[#This Row],[WERKELIJK]]) -> 280.00 | F22: =OperatingExpenses[[#This Row],[GESCHAT]]-OperatingExpenses[[#This Row],[WERKELIJK]] -> -30.00
B23: Water, gas, elektriciteit | C23: 1400.00 | D23: 1385.00 | E23: =OperatingExpenses[[#This Row],[WERKELIJK]]+(10^-6)*ROW(OperatingExpenses[[#This Row],[WERKELIJK]]) -> 1385.00 | F23: =OperatingExpenses[[#This Row],[GESCHAT]]-OperatingExpenses[[#This Row],[WERKELIJK]] -> 15.00
B24: Overig | C24: 1000.00 | D24: 750.00 | E24: =OperatingExpenses[[#This Row],[WERKELIJK]]+(10^-6)*ROW(OperatingExpenses[[#This Row],[WERKELIJK]]) -> 750.00 | F24: =OperatingExpenses[[#This Row],[GESCHAT]]-OperatingExpenses[[#This Row],[WERKELIJK]] -> 250.00
B25: Totale operationele uitgaven | C25: =SUBTOTAL(109,OperatingExpenses[GESCHAT]) -> 36000.00 | D25: =SUBTOTAL(109,OperatingExpenses[WERKELIJK]) -> 35530.00 | F25: =SUBTOTAL(109,OperatingExpenses[VERSCHIL]) -> 470.00
